[Event "Titled Tuesday Blitz May 10 Late 2022"]
[White "Babazada, Khazar"]
[Black "Nazaretyan, Tigran"]
[WhiteFideId "13413554"]
[BlackFideId "24162345"]
[WhiteElo "2406"]
[BlackElo "2225"]
[Result "1-0"]
[Round "05"]
[TimeControl "180+1"]
[Date "2022.05.10"]
[WhiteClock "0:00:17"]
[BlackClock "0:00:08"]

1. Nf3 {[%clk 0:03:00]}  Nf6 {[%clk 0:02:59]} 2. b3 {[%clk 0:03:00]}  g6 {[%clk 0:02:56]} 3. Bb2 {[%clk 0:03:01]}  Bg7 {[%clk 0:02:57]} 4. g3 {[%clk 0:02:59]}  O-O {[%clk 0:02:56]} 5. Bg2 {[%clk 0:02:59]}  c5 {[%clk 0:02:56]} 6. O-O {[%clk 0:02:58]}  Nc6 {[%clk 0:02:55]} 7. d3 {[%clk 0:02:58]}  d5 {[%clk 0:02:53]} 8. Nbd2 {[%clk 0:02:59]}  Qc7 {[%clk 0:02:53]} 9. e4 {[%clk 0:02:52]}  Rd8 {[%clk 0:02:48]} 10. exd5 {[%clk 0:02:42]}  Rxd5 {[%clk 0:02:45]} 11. Re1 {[%clk 0:02:39]}  Rh5 {[%clk 0:02:41]} 12. h4 {[%clk 0:02:30]}  Bg4 {[%clk 0:02:39]} 13. Nf1 {[%clk 0:02:30]}  Qd7 {[%clk 0:02:20]} 14. Ne3 {[%clk 0:02:02]}  Bh3 {[%clk 0:02:16]} 15. Bxh3 {[%clk 0:02:03]}  Qxh3 {[%clk 0:02:15]} 16. Ng5 {[%clk 0:02:04]}  Qd7 {[%clk 0:02:09]} 17. Ng2 {[%clk 0:02:04]}  h6 {[%clk 0:02:01]} 18. Nf3 {[%clk 0:02:04]}  g5 {[%clk 0:01:49]} 19. Qe2 {[%clk 0:01:48]}  Nd4 {[%clk 0:01:39]} 20. Bxd4 {[%clk 0:01:44]}  cxd4 {[%clk 0:01:39]} 21. Qxe7 {[%clk 0:01:45]}  Qh3 {[%clk 0:01:27]} 22. Qxb7 {[%clk 0:00:52]}  Rf8 {[%clk 0:01:25]} 23. Nh2 {[%clk 0:00:47]}  Qf5 {[%clk 0:00:58]} 24. Qf3 {[%clk 0:00:46]}  Qg6 {[%clk 0:00:49]} 25. g4 {[%clk 0:00:45]}  Rxh4 {[%clk 0:00:48]} 26. Nxh4 {[%clk 0:00:46]}  gxh4 {[%clk 0:00:48]} 27. Qf5 {[%clk 0:00:47]}  Qxf5 {[%clk 0:00:36]} 28. gxf5 {[%clk 0:00:47]}  Rc8 {[%clk 0:00:36]} 29. Re2 {[%clk 0:00:48]}  Rc5 {[%clk 0:00:37]} 30. Rae1 {[%clk 0:00:28]}  Rxf5 {[%clk 0:00:35]} 31. Re5 {[%clk 0:00:29]}  Rf4 {[%clk 0:00:34]} 32. Ra5 {[%clk 0:00:25]}  Ng4 {[%clk 0:00:24]} 33. Re4 {[%clk 0:00:23]}  Rxe4 {[%clk 0:00:17]} 34. dxe4 {[%clk 0:00:24]}  Ne5 {[%clk 0:00:14]} 35. Rxa7 {[%clk 0:00:21]}  d3 {[%clk 0:00:14]} 36. cxd3 {[%clk 0:00:20]}  Nxd3 {[%clk 0:00:15]} 37. Kf1 {[%clk 0:00:18]}  h3 {[%clk 0:00:13]} 38. Rd7 {[%clk 0:00:17]}  Nc1 {[%clk 0:00:12]} 39. b4 {[%clk 0:00:16]}  Nxa2 {[%clk 0:00:10]} 40. b5 {[%clk 0:00:16]}  Nc3 {[%clk 0:00:10]} 41. b6 {[%clk 0:00:17]}  Nxe4 {[%clk 0:00:09]} 42. b7 {[%clk 0:00:17]}  Be5 {[%clk 0:00:10]} 43. Re7 {[%clk 0:00:18]}  Nc5 {[%clk 0:00:09]} 44. Rxe5 {[%clk 0:00:17]}  Nxb7 {[%clk 0:00:10]} 45. Rh5 {[%clk 0:00:17]}  Kg7 {[%clk 0:00:10]} 46. Rxh3 {[%clk 0:00:17]}  Nd6 {[%clk 0:00:09]} 47. Ng4 {[%clk 0:00:17]}  Nf5 {[%clk 0:00:08]} 48. Ke2 {[%clk 0:00:18]}  Kg6 {[%clk 0:00:08]} 49. Kf3 {[%clk 0:00:18]}  Kg5 {[%clk 0:00:09]} 50. Ne3 {[%clk 0:00:16]}  Nd4+ {[%clk 0:00:08]} 51. Ke4 {[%clk 0:00:16]}  Ne6 {[%clk 0:00:08]} 52. Rg3+ {[%clk 0:00:16]}  Kf6 {[%clk 0:00:08]} 53. Nd5# {[%clk 0:00:17]} 1-0


[Site "https://www.chess.com"]

[Event "Titled Tuesday Blitz May 10 Late 2022"]
[White "Bashirli, Nail"]
[Black "Sjugirov, Sanan"]
[WhiteFideId "13406809"]
[BlackFideId "4189302"]
[WhiteElo "2333"]
[BlackElo "2602"]
[Result "0-1"]
[Round "05"]
[TimeControl "180+1"]
[Date "2022.05.10"]
[WhiteClock "0:00:06"]
[BlackClock "0:00:14"]

1. e4 {[%clk 0:03:00]}  e5 {[%clk 0:02:57]} 2. Nf3 {[%clk 0:03:00]}  Nc6 {[%clk 0:02:58]} 3. Bb5 {[%clk 0:03:00]}  a6 {[%clk 0:02:58]} 4. Ba4 {[%clk 0:03:00]}  Nf6 {[%clk 0:02:59]} 5. Nc3 {[%clk 0:02:58]}  d6 {[%clk 0:02:55]} 6. O-O {[%clk 0:02:58]}  b5 {[%clk 0:02:50]} 7. Bb3 {[%clk 0:02:57]}  Na5 {[%clk 0:02:50]} 8. d4 {[%clk 0:02:56]}  exd4 {[%clk 0:02:45]} 9. Nd5 {[%clk 0:02:41]}  Nxb3 {[%clk 0:02:41]} 10. axb3 {[%clk 0:02:38]}  c5 {[%clk 0:02:08]} 11. Bg5 {[%clk 0:02:33]}  Be7 {[%clk 0:02:08]} 12. Nxe7 {[%clk 0:02:33]}  Qxe7 {[%clk 0:02:08]} 13. e5 {[%clk 0:02:33]}  dxe5 {[%clk 0:02:07]} 14. Re1 {[%clk 0:01:47]}  e4 {[%clk 0:02:07]} 15. Nd2 {[%clk 0:01:36]}  Bb7 {[%clk 0:02:05]} 16. Bxf6 {[%clk 0:01:31]}  gxf6 {[%clk 0:02:02]} 17. Nxe4 {[%clk 0:01:21]}  Bxe4 {[%clk 0:02:01]} 18. f3 {[%clk 0:01:19]}  f5 {[%clk 0:01:41]} 19. b4 {[%clk 0:01:10]}  Rg8 {[%clk 0:01:17]} 20. fxe4 {[%clk 0:00:54]}  fxe4 {[%clk 0:01:06]} 21. bxc5 {[%clk 0:00:53]}  Qe5 {[%clk 0:01:04]} 22. Qe2 {[%clk 0:00:46]}  e3 {[%clk 0:00:40]} 23. b4 {[%clk 0:00:23]}  Qe4 {[%clk 0:00:33]} 24. g3 {[%clk 0:00:18]}  Rg6 {[%clk 0:00:18]} 25. Rf1 {[%clk 0:00:17]}  f5 {[%clk 0:00:14]} 26. Qh5 {[%clk 0:00:13]}  f4 {[%clk 0:00:14]} 27. Qxh7 {[%clk 0:00:06]}  Rxg3+ {[%clk 0:00:14]} 0-1


[Site "https://www.chess.com"]

[Event "Titled Tuesday Blitz May 10 Late 2022"]
[White "Bettalli, Francesco"]
[Black "Radovanovic, Mihajlo"]
[WhiteFideId "2816453"]
[BlackFideId "940313"]
[WhiteElo "2216"]
[BlackElo "2394"]
[Result "1-0"]
[Round "05"]
[TimeControl "180+1"]
[Date "2022.05.10"]
[WhiteClock "0:02:00"]
[BlackClock "0:00:46"]

1. d4 {[%clk 0:03:00]}  Nf6 {[%clk 0:02:57]} 2. Nc3 {[%clk 0:03:01]}  d5 {[%clk 0:02:49]} 3. Bf4 {[%clk 0:03:01]}  a6 {[%clk 0:02:46]} 4. e3 {[%clk 0:03:00]}  b5 {[%clk 0:02:47]} 5. a3 {[%clk 0:02:58]}  e6 {[%clk 0:02:45]} 6. Nf3 {[%clk 0:02:58]}  Bb7 {[%clk 0:02:45]} 7. Bd3 {[%clk 0:02:57]}  c5 {[%clk 0:02:45]} 8. dxc5 {[%clk 0:02:58]}  Bxc5 {[%clk 0:02:45]} 9. O-O {[%clk 0:02:59]}  O-O {[%clk 0:02:44]} 10. Ne5 {[%clk 0:02:59]}  Nbd7 {[%clk 0:02:43]} 11. Ne2 {[%clk 0:02:55]}  Rc8 {[%clk 0:02:41]} 12. c3 {[%clk 0:02:54]}  Bd6 {[%clk 0:02:39]} 13. Nxd7 {[%clk 0:02:53]}  Qxd7 {[%clk 0:02:40]} 14. Bg3 {[%clk 0:02:51]}  e5 {[%clk 0:02:39]} 15. Bc2 {[%clk 0:02:49]}  Rfe8 {[%clk 0:02:37]} 16. Bh4 {[%clk 0:02:46]}  Be7 {[%clk 0:02:31]} 17. Ng3 {[%clk 0:02:44]}  e4 {[%clk 0:02:25]} 18. Ne2 {[%clk 0:02:42]}  Qg4 {[%clk 0:02:14]} 19. Bg3 {[%clk 0:02:40]}  Qg6 {[%clk 0:02:07]} 20. Nf4 {[%clk 0:02:39]}  Qf5 {[%clk 0:02:05]} 21. Bb3 {[%clk 0:02:39]}  g5 {[%clk 0:02:02]} 22. Nh5 {[%clk 0:02:33]}  g4 {[%clk 0:01:25]} 23. Nf4 {[%clk 0:02:15]}  h5 {[%clk 0:01:04]} 24. Bh4 {[%clk 0:02:13]}  Red8 {[%clk 0:01:01]} 25. Qd4 {[%clk 0:02:06]}  Bc5 {[%clk 0:00:58]} 26. Qxf6 {[%clk 0:02:05]}  Qxf6 {[%clk 0:00:48]} 27. Bxf6 {[%clk 0:02:06]}  Rd6 {[%clk 0:00:48]} 28. Bd4 {[%clk 0:02:00]}  Bxd4 {[%clk 0:00:46]} 29. cxd4 {[%clk 0:02:01]}  Rdc6 {[%clk 0:00:46]} 30. Ne2 {[%clk 0:02:00]} 1-0


[Site "https://www.chess.com"]

[Event "Titled Tuesday Blitz May 10 Late 2022"]
[White "Bilych, Olexiy"]
[Black "Batsiashvili, Nino"]
[WhiteFideId "14156504"]
[BlackFideId "13602993"]
[WhiteElo "2176"]
[BlackElo "2193"]
[Result "0-1"]
[Round "05"]
[TimeControl "180+1"]
[Date "2022.05.11"]
[WhiteClock "0:01:16"]
[BlackClock "0:01:19"]

1. e4 {[%clk 0:03:00]}  c6 {[%clk 0:02:56]} 2. d4 {[%clk 0:03:00]}  d5 {[%clk 0:02:55]} 3. e5 {[%clk 0:03:01]}  Bf5 {[%clk 0:02:55]} 4. h4 {[%clk 0:03:02]}  h5 {[%clk 0:02:54]} 5. Bd3 {[%clk 0:03:02]}  Bxd3 {[%clk 0:02:53]} 6. Qxd3 {[%clk 0:03:03]}  e6 {[%clk 0:02:53]} 7. Bg5 {[%clk 0:03:04]}  Be7 {[%clk 0:02:47]} 8. Nf3 {[%clk 0:03:03]}  Nh6 {[%clk 0:02:46]} 9. Nbd2 {[%clk 0:03:03]}  Nf5 {[%clk 0:02:43]} 10. a4 {[%clk 0:03:01]}  a5 {[%clk 0:02:40]} 11. c4 {[%clk 0:02:59]}  Na6 {[%clk 0:02:37]} 12. b3 {[%clk 0:02:58]}  Nb4 {[%clk 0:02:36]} 13. Qc3 {[%clk 0:02:56]}  dxc4 {[%clk 0:02:26]} 14. Bxe7 {[%clk 0:02:55]}  Qxe7 {[%clk 0:02:18]} 15. Nxc4 {[%clk 0:02:54]}  O-O {[%clk 0:02:17]} 16. g3 {[%clk 0:02:47]}  Rfd8 {[%clk 0:02:17]} 17. O-O {[%clk 0:02:46]}  b5 {[%clk 0:02:10]} 18. axb5 {[%clk 0:02:36]}  cxb5 {[%clk 0:02:11]} 19. Nxa5 {[%clk 0:02:36]}  Rac8 {[%clk 0:02:00]} 20. Qd2 {[%clk 0:02:31]}  Nc2 {[%clk 0:01:51]} 21. Rac1 {[%clk 0:02:19]}  Ncxd4 {[%clk 0:01:50]} 22. Nxd4 {[%clk 0:02:19]}  Nxd4 {[%clk 0:01:44]} 23. Qe3 {[%clk 0:02:19]}  Qb4 {[%clk 0:01:32]} 24. Rxc8 {[%clk 0:02:09]}  Rxc8 {[%clk 0:01:30]} 25. Nb7 {[%clk 0:02:10]}  Rc3 {[%clk 0:01:22]} 26. Qf4 {[%clk 0:01:16]}  Ne2+ {[%clk 0:01:19]} 0-1


[Site "https://www.chess.com"]

[Event "Titled Tuesday Blitz May 10 Late 2022"]
[White "Bjelobrk, Igor"]
[Black "Jegorovas, Aleksandras"]
[WhiteFideId "4300726"]
[BlackFideId "12801950"]
[WhiteElo "2335"]
[BlackElo "2247"]
[Result "1-0"]
[Round "05"]
[TimeControl "180+1"]
[Date "2022.05.11"]
[WhiteClock "0:00:09"]
[BlackClock "0:00:08"]

1. Nf3 {[%clk 0:02:56]}  Nf6 {[%clk 0:02:59]} 2. c4 {[%clk 0:02:54]}  c5 {[%clk 0:02:58]} 3. d4 {[%clk 0:02:53]}  e6 {[%clk 0:02:56]} 4. g3 {[%clk 0:02:52]}  b6 {[%clk 0:02:54]} 5. Bg2 {[%clk 0:02:47]}  Bb7 {[%clk 0:02:54]} 6. O-O {[%clk 0:02:47]}  cxd4 {[%clk 0:02:53]} 7. Qxd4 {[%clk 0:02:45]}  a6 {[%clk 0:02:54]} 8. Nc3 {[%clk 0:02:44]}  Be7 {[%clk 0:02:52]} 9. Rd1 {[%clk 0:02:44]}  d6 {[%clk 0:02:50]} 10. b3 {[%clk 0:02:44]}  Nbd7 {[%clk 0:02:48]} 11. Bb2 {[%clk 0:02:43]}  Qc7 {[%clk 0:02:47]} 12. Rac1 {[%clk 0:02:43]}  O-O {[%clk 0:02:42]} 13. Qe3 {[%clk 0:02:41]}  Rac8 {[%clk 0:02:38]} 14. Nd4 {[%clk 0:02:33]}  Bxg2 {[%clk 0:02:36]} 15. Kxg2 {[%clk 0:02:33]}  Ne5 {[%clk 0:02:21]} 16. h3 {[%clk 0:02:31]}  Qb7+ {[%clk 0:02:20]} 17. Kg1 {[%clk 0:02:30]}  Rfd8 {[%clk 0:02:19]} 18. a4 {[%clk 0:02:22]}  Nc6 {[%clk 0:02:12]} 19. Qf3 {[%clk 0:02:17]}  Qa8 {[%clk 0:01:44]} 20. Nxc6 {[%clk 0:02:09]}  Rxc6 {[%clk 0:01:44]} 21. g4 {[%clk 0:02:07]}  Qc8 {[%clk 0:01:40]} 22. g5 {[%clk 0:02:06]}  Nd7 {[%clk 0:01:38]} 23. h4 {[%clk 0:02:06]}  Ne5 {[%clk 0:01:34]} 24. Qg2 {[%clk 0:02:04]}  Ng6 {[%clk 0:01:29]} 25. h5 {[%clk 0:02:01]}  Nf4 {[%clk 0:01:25]} 26. Qg4 {[%clk 0:02:00]}  e5 {[%clk 0:01:16]} 27. Qxc8 {[%clk 0:01:40]}  Rdxc8 {[%clk 0:01:16]} 28. e3 {[%clk 0:01:41]}  Nh3+ {[%clk 0:01:10]} 29. Kg2 {[%clk 0:01:38]}  Nxg5 {[%clk 0:01:09]} 30. Nd5 {[%clk 0:01:38]}  Bd8 {[%clk 0:01:09]} 31. h6 {[%clk 0:01:32]}  gxh6 {[%clk 0:01:07]} 32. f4 {[%clk 0:01:32]}  exf4 {[%clk 0:01:02]} 33. exf4 {[%clk 0:01:31]}  Ne6 {[%clk 0:00:56]} 34. Kf3 {[%clk 0:01:30]}  b5 {[%clk 0:00:46]} 35. axb5 {[%clk 0:01:28]}  axb5 {[%clk 0:00:47]} 36. cxb5 {[%clk 0:01:28]}  Rxc1 {[%clk 0:00:47]} 37. Bxc1 {[%clk 0:01:28]}  Rc5 {[%clk 0:00:30]} 38. b6 {[%clk 0:01:23]}  Rb5 {[%clk 0:00:30]} 39. Be3 {[%clk 0:01:12]}  Rxb3 {[%clk 0:00:27]} 40. Ke4 {[%clk 0:01:10]}  Nc5+ {[%clk 0:00:25]} 41. Kf5 {[%clk 0:01:05]}  Bxb6 {[%clk 0:00:24]} 42. Bd4 {[%clk 0:00:55]}  Ne6 {[%clk 0:00:21]} 43. Bxb6 {[%clk 0:00:53]}  Ng7+ {[%clk 0:00:15]} 44. Kf6 {[%clk 0:00:46]}  Nh5+ {[%clk 0:00:13]} 45. Ke7 {[%clk 0:00:44]}  Nxf4 {[%clk 0:00:13]} 46. Nf6+ {[%clk 0:00:26]}  Kh8 {[%clk 0:00:11]} 47. Bd4 {[%clk 0:00:25]}  Rb7+ {[%clk 0:00:10]} 48. Kxd6 {[%clk 0:00:24]}  Ne6 {[%clk 0:00:09]} 49. Rc1 {[%clk 0:00:19]}  Kg7 {[%clk 0:00:08]} 50. Rc8 {[%clk 0:00:19]}  Nxd4 {[%clk 0:00:07]} 51. Ne8+ {[%clk 0:00:14]}  Kg6 {[%clk 0:00:07]} 52. Kd5 {[%clk 0:00:13]}  Ne6 {[%clk 0:00:07]} 53. Nd6 {[%clk 0:00:12]}  Rd7 {[%clk 0:00:07]} 54. Rg8+ {[%clk 0:00:11]}  Kf6 {[%clk 0:00:07]} 55. Kc6 {[%clk 0:00:12]}  Rd8 {[%clk 0:00:07]} 56. Rg1 {[%clk 0:00:09]}  Ke5 {[%clk 0:00:07]} 57. Re1+ {[%clk 0:00:09]}  Kf6 {[%clk 0:00:07]} 58. Rf1+ {[%clk 0:00:09]}  Ke7 {[%clk 0:00:08]} 59. Rxf7# {[%clk 0:00:09]} 1-0


[Site "https://www.chess.com"]

[Event "Titled Tuesday Blitz May 10 Late 2022"]
[White "Boidiya, Sidi"]
[Black "Jakubowski, Krzysztof"]
[WhiteFideId "19600100"]
[BlackFideId "1112848"]
[WhiteElo "2113"]
[BlackElo "2365"]
[Result "0-1"]
[Round "05"]
[TimeControl "180+1"]
[Date "2022.05.11"]
[WhiteClock "0:01:23"]
[BlackClock "0:01:25"]

1. e4 {[%clk 0:02:56]}  c5 {[%clk 0:02:59]} 2. Nc3 {[%clk 0:02:56]}  e6 {[%clk 0:02:58]} 3. g3 {[%clk 0:02:57]}  a6 {[%clk 0:02:56]} 4. Bg2 {[%clk 0:02:55]}  b5 {[%clk 0:02:55]} 5. d3 {[%clk 0:02:52]}  Nc6 {[%clk 0:02:54]} 6. Be3 {[%clk 0:02:51]}  Bb7 {[%clk 0:02:53]} 7. Qd2 {[%clk 0:02:51]}  d6 {[%clk 0:02:50]} 8. Nge2 {[%clk 0:02:48]}  Nf6 {[%clk 0:02:50]} 9. h3 {[%clk 0:02:48]}  Be7 {[%clk 0:02:49]} 10. O-O {[%clk 0:02:47]}  Qc7 {[%clk 0:02:47]} 11. f4 {[%clk 0:02:47]}  O-O {[%clk 0:02:44]} 12. a3 {[%clk 0:02:45]}  Rfe8 {[%clk 0:02:42]} 13. g4 {[%clk 0:02:45]}  Nd7 {[%clk 0:02:40]} 14. d4 {[%clk 0:02:41]}  cxd4 {[%clk 0:02:27]} 15. Nxd4 {[%clk 0:02:41]}  Nb6 {[%clk 0:02:24]} 16. Qf2 {[%clk 0:02:22]}  Nc4 {[%clk 0:02:22]} 17. Nxc6 {[%clk 0:02:16]}  Bxc6 {[%clk 0:02:21]} 18. Bc1 {[%clk 0:02:14]}  Bf6 {[%clk 0:02:08]} 19. Nd1 {[%clk 0:02:08]}  Qb7 {[%clk 0:02:05]} 20. Qe2 {[%clk 0:02:07]}  Bd4+ {[%clk 0:01:40]} 21. Kh1 {[%clk 0:02:04]}  Rac8 {[%clk 0:01:35]} 22. c3 {[%clk 0:02:02]}  Ba7 {[%clk 0:01:35]} 23. f5 {[%clk 0:01:28]}  exf5 {[%clk 0:01:31]} 24. Rxf5 {[%clk 0:01:23]}  Bxe4 {[%clk 0:01:26]} 25. Bxe4 {[%clk 0:01:23]}  Rxe4 {[%clk 0:01:26]} 26. Qf3 {[%clk 0:01:22]}  Re1+ {[%clk 0:01:25]} 27. Kg2 {[%clk 0:01:23]}  Qxf3+ {[%clk 0:01:25]} 28. Rxf3 {[%clk 0:01:23]}  Rxd1 {[%clk 0:01:25]} 0-1


[Site "https://www.chess.com"]

[Event "Titled Tuesday Blitz May 10 Late 2022"]
[White "Bortnyk, Olexandr"]
[Black "Boruchovsky, Avital"]
[WhiteFideId "14120828"]
[BlackFideId "2800055"]
[WhiteElo "2723"]
[BlackElo "2469"]
[Result "0-1"]
[Round "05"]
[TimeControl "180+1"]
[Date "2022.05.10"]
[WhiteClock "0:00:25"]
[BlackClock "0:00:20"]

1. d4 {[%clk 0:03:00]}  d5 {[%clk 0:02:56]} 2. Nc3 {[%clk 0:03:01]}  Nf6 {[%clk 0:02:56]} 3. Bf4 {[%clk 0:03:02]}  c6 {[%clk 0:02:55]} 4. e3 {[%clk 0:03:02]}  Bf5 {[%clk 0:02:55]} 5. Nf3 {[%clk 0:03:03]}  h6 {[%clk 0:02:55]} 6. Ne5 {[%clk 0:03:03]}  Nbd7 {[%clk 0:02:55]} 7. g4 {[%clk 0:03:04]}  Bh7 {[%clk 0:02:51]} 8. h4 {[%clk 0:03:03]}  Nxe5 {[%clk 0:02:51]} 9. Bxe5 {[%clk 0:03:04]}  Nd7 {[%clk 0:02:47]} 10. Bg3 {[%clk 0:03:03]}  e6 {[%clk 0:02:47]} 11. Bd3 {[%clk 0:03:03]}  Bxd3 {[%clk 0:02:42]} 12. cxd3 {[%clk 0:03:04]}  Qb6 {[%clk 0:02:41]} 13. a3 {[%clk 0:03:03]}  Be7 {[%clk 0:02:37]} 14. Rb1 {[%clk 0:03:01]}  c5 {[%clk 0:02:35]} 15. dxc5 {[%clk 0:02:59]}  Nxc5 {[%clk 0:02:32]} 16. b4 {[%clk 0:02:59]}  Nd7 {[%clk 0:02:32]} 17. Rc1 {[%clk 0:02:56]}  a5 {[%clk 0:02:19]} 18. Qa4 {[%clk 0:02:52]}  Qc6 {[%clk 0:02:05]} 19. bxa5 {[%clk 0:02:48]}  O-O {[%clk 0:01:59]} 20. O-O {[%clk 0:02:42]}  Nc5 {[%clk 0:01:55]} 21. Qd1 {[%clk 0:02:17]}  Rxa5 {[%clk 0:01:38]} 22. d4 {[%clk 0:02:17]}  Nd7 {[%clk 0:01:36]} 23. a4 {[%clk 0:02:17]}  Ba3 {[%clk 0:01:26]} 24. Rc2 {[%clk 0:02:15]}  Rc8 {[%clk 0:01:24]} 25. Qa1 {[%clk 0:02:14]}  Bb4 {[%clk 0:01:05]} 26. Rfc1 {[%clk 0:02:13]}  Qa6 {[%clk 0:01:04]} 27. g5 {[%clk 0:01:59]}  hxg5 {[%clk 0:01:01]} 28. hxg5 {[%clk 0:02:00]}  Bxc3 {[%clk 0:00:53]} 29. Rxc3 {[%clk 0:02:01]}  Rc4 {[%clk 0:00:52]} 30. Qa3 {[%clk 0:01:37]}  Raxa4 {[%clk 0:00:38]} 31. Qe7 {[%clk 0:01:36]}  Rxc3 {[%clk 0:00:31]} 32. Rxc3 {[%clk 0:00:30]}  Ra1+ {[%clk 0:00:31]} 33. Kg2 {[%clk 0:00:31]}  Qf1+ {[%clk 0:00:30]} 34. Kf3 {[%clk 0:00:31]}  Qh1+ {[%clk 0:00:23]} 35. Kg4 {[%clk 0:00:32]}  Qe4+ {[%clk 0:00:21]} 36. f4 {[%clk 0:00:25]}  f5+ {[%clk 0:00:21]} 37. Kh5 {[%clk 0:00:22]}  Rh1+ {[%clk 0:00:18]} 38. Kg6 {[%clk 0:00:22]}  Nf8+ {[%clk 0:00:18]} 39. Qxf8+ {[%clk 0:00:22]}  Kxf8 {[%clk 0:00:19]} 40. Rc8+ {[%clk 0:00:22]}  Ke7 {[%clk 0:00:19]} 41. Rc7+ {[%clk 0:00:22]}  Kd6 {[%clk 0:00:20]} 42. Rxg7 {[%clk 0:00:21]}  Qf3 {[%clk 0:00:20]} 43. Be1 {[%clk 0:00:20]}  Rxe1 {[%clk 0:00:20]} 44. Kf6 {[%clk 0:00:20]}  Qxe3 {[%clk 0:00:19]} 45. Rxb7 {[%clk 0:00:20]}  Qxd4+ {[%clk 0:00:19]} 46. Kf7 {[%clk 0:00:21]}  Qxf4 {[%clk 0:00:19]} 47. g6 {[%clk 0:00:21]}  Rg1 {[%clk 0:00:20]} 48. Rb6+ {[%clk 0:00:21]}  Ke5 {[%clk 0:00:20]} 49. Rxe6+ {[%clk 0:00:22]}  Kd4 {[%clk 0:00:20]} 50. g7 {[%clk 0:00:23]}  Qc7+ {[%clk 0:00:20]} 51. Re7 {[%clk 0:00:21]}  Rxg7+ {[%clk 0:00:19]} 52. Kxg7 {[%clk 0:00:21]}  Qxe7+ {[%clk 0:00:19]} 53. Kg6 {[%clk 0:00:22]}  f4 {[%clk 0:00:19]} 54. Kf5 {[%clk 0:00:23]}  Qe4+ {[%clk 0:00:19]} 55. Kg4 {[%clk 0:00:24]}  f3+ {[%clk 0:00:20]} 56. Kg3 {[%clk 0:00:25]}  Ke3 {[%clk 0:00:20]} 57. Kh2 {[%clk 0:00:25]}  Qg4 {[%clk 0:00:20]} 0-1


[Site "https://www.chess.com"]

[Event "Titled Tuesday Blitz May 10 Late 2022"]
[White "Can, Melih Kaan"]
[Black "Jeet, Jain"]
[WhiteFideId "6317383"]
[BlackFideId "5073022"]
[WhiteElo "2049"]
[BlackElo "2028"]
[Result "0-1"]
[Round "05"]
[TimeControl "180+1"]
[Date "2022.05.11"]
[WhiteClock "0:00:28"]
[BlackClock "0:01:10"]

1. e4 {[%clk 0:02:58]}  b6 {[%clk 0:02:52]} 2. d4 {[%clk 0:02:58]}  Bb7 {[%clk 0:02:52]} 3. Bd3 {[%clk 0:02:59]}  g6 {[%clk 0:02:49]} 4. Nf3 {[%clk 0:02:57]}  Bg7 {[%clk 0:02:49]} 5. O-O {[%clk 0:02:57]}  d6 {[%clk 0:02:50]} 6. Re1 {[%clk 0:02:57]}  Nd7 {[%clk 0:02:50]} 7. c3 {[%clk 0:02:54]}  e5 {[%clk 0:02:50]} 8. Be3 {[%clk 0:02:50]}  Ngf6 {[%clk 0:02:49]} 9. Nbd2 {[%clk 0:02:48]}  O-O {[%clk 0:02:47]} 10. h3 {[%clk 0:02:49]}  Qe7 {[%clk 0:02:42]} 11. Qc2 {[%clk 0:02:49]}  Nh5 {[%clk 0:02:41]} 12. Nf1 {[%clk 0:02:44]}  Nf4 {[%clk 0:02:41]} 13. Bxf4 {[%clk 0:02:38]}  exf4 {[%clk 0:02:42]} 14. Re2 {[%clk 0:02:39]}  h5 {[%clk 0:02:36]} 15. h4 {[%clk 0:02:35]}  Rae8 {[%clk 0:02:24]} 16. Rae1 {[%clk 0:02:34]}  Bf6 {[%clk 0:02:14]} 17. g3 {[%clk 0:02:33]}  fxg3 {[%clk 0:02:12]} 18. fxg3 {[%clk 0:02:34]}  Bg7 {[%clk 0:02:10]} 19. N1d2 {[%clk 0:02:23]}  c5 {[%clk 0:02:07]} 20. e5 {[%clk 0:02:08]}  dxe5 {[%clk 0:02:05]} 21. dxe5 {[%clk 0:02:06]}  Qe6 {[%clk 0:02:03]} 22. Ne4 {[%clk 0:01:34]}  Nxe5 {[%clk 0:01:58]} 23. Nxe5 {[%clk 0:01:22]}  Qxe5 {[%clk 0:01:52]} 24. Kh2 {[%clk 0:01:20]}  Qb8 {[%clk 0:01:50]} 25. Ng5 {[%clk 0:01:16]}  Rxe2+ {[%clk 0:01:49]} 26. Rxe2 {[%clk 0:01:17]}  Qd6 {[%clk 0:01:44]} 27. Bc4 {[%clk 0:01:04]}  Qc6 {[%clk 0:01:44]} 28. Qd1 {[%clk 0:01:00]}  b5 {[%clk 0:01:38]} 29. Bd3 {[%clk 0:00:56]}  Rd8 {[%clk 0:01:36]} 30. Qb1 {[%clk 0:00:45]}  Rxd3 {[%clk 0:01:35]} 31. Ne4 {[%clk 0:00:40]}  c4 {[%clk 0:01:28]} 32. Qf1 {[%clk 0:00:37]}  f5 {[%clk 0:01:27]} 33. Ng5 {[%clk 0:00:35]}  Bf8 {[%clk 0:01:15]} 34. Re6 {[%clk 0:00:30]}  Rd2+ {[%clk 0:01:12]} 35. Kh3 {[%clk 0:00:30]}  Qg2+ {[%clk 0:01:09]} 36. Qxg2 {[%clk 0:00:29]}  Bxg2+ {[%clk 0:01:10]} 37. Kh2 {[%clk 0:00:29]}  Bd5+ {[%clk 0:01:10]} 38. Re2 {[%clk 0:00:28]}  Rxe2+ {[%clk 0:01:10]} 0-1


[Site "https://www.chess.com"]

[Event "Titled Tuesday Blitz May 10 Late 2022"]
[White "Cilek, Bora"]
[Black "Curtis, John"]
[WhiteFideId "34502165"]
[BlackFideId "3200256"]
[WhiteElo "2432"]
[BlackElo "2203"]
[Result "1-0"]
[Round "05"]
[TimeControl "180+1"]
[Date "2022.05.11"]
[WhiteClock "0:00:24"]
[BlackClock "0:00:11"]

1. Nf3 {[%clk 0:03:00]}  c5 {[%clk 0:02:49]} 2. c4 {[%clk 0:03:00]}  Nf6 {[%clk 0:02:45]} 3. Nc3 {[%clk 0:03:00]}  g6 {[%clk 0:02:43]} 4. d4 {[%clk 0:02:53]}  Bg7 {[%clk 0:02:38]} 5. e4 {[%clk 0:02:50]}  cxd4 {[%clk 0:02:32]} 6. Nxd4 {[%clk 0:02:50]}  d6 {[%clk 0:02:19]} 7. Be2 {[%clk 0:02:39]}  Nc6 {[%clk 0:02:17]} 8. Be3 {[%clk 0:02:38]}  Nxd4 {[%clk 0:01:59]} 9. Bxd4 {[%clk 0:02:38]}  O-O {[%clk 0:01:59]} 10. Qd2 {[%clk 0:02:30]}  a6 {[%clk 0:01:58]} 11. O-O {[%clk 0:02:24]}  Bd7 {[%clk 0:01:54]} 12. Rac1 {[%clk 0:02:04]}  b5 {[%clk 0:01:49]} 13. a3 {[%clk 0:01:41]}  Qb8 {[%clk 0:01:30]} 14. Nd5 {[%clk 0:01:35]}  Nxd5 {[%clk 0:01:12]} 15. Bxg7 {[%clk 0:01:36]}  Kxg7 {[%clk 0:01:07]} 16. exd5 {[%clk 0:01:35]}  Qb6 {[%clk 0:00:50]} 17. b4 {[%clk 0:01:21]}  bxc4 {[%clk 0:00:49]} 18. Bxc4 {[%clk 0:01:22]}  Ra7 {[%clk 0:00:28]} 19. Rfe1 {[%clk 0:01:21]}  Bc8 {[%clk 0:00:24]} 20. Re3 {[%clk 0:01:14]}  Rd8 {[%clk 0:00:19]} 21. Bf1 {[%clk 0:01:04]}  Bf5 {[%clk 0:00:18]} 22. Rc6 {[%clk 0:00:48]}  Qb7 {[%clk 0:00:18]} 23. Qd4+ {[%clk 0:00:36]}  Kg8 {[%clk 0:00:17]} 24. Rec3 {[%clk 0:00:36]}  Bd7 {[%clk 0:00:15]} 25. Rb6 {[%clk 0:00:33]}  Qa8 {[%clk 0:00:13]} 26. Qe3 {[%clk 0:00:30]}  Kf8 {[%clk 0:00:11]} 27. Qh6+ {[%clk 0:00:27]}  Kg8 {[%clk 0:00:11]} 28. Rc4 {[%clk 0:00:24]}  Rc8 {[%clk 0:00:11]} 29. Rh4 {[%clk 0:00:24]} 1-0


[Site "https://www.chess.com"]